Cogmind - Beta 11.1 @@@ ROGUE MODE // 2022.05.29 @ 22:01:55 Player: theq629 Result: Self-destructed Performance ------------- Evolutions (1) 500 Regions Visited (3) 600 Robots Destroyed (6) 30 Value Destroyed (105) 105 Prototype IDs (0) 0 Alien Tech Used (0) 0 Bonus (0) 0 TOTAL SCORE: 1235 Bonus ------- None Cogmind --------- Core Integrity 387/400 Matter 240/300 Energy 100/100 System Corruption 0% Temperature Warm (114) Movement Hovering (180) Ox2 Location -9/Materials Parts ------- > --- POWER (2) -------- (None) > --- PROPULSION (3) --- Improved Hover Unit > --- UTILITY (2) ------ Medium Storage Unit Seismic Detector > --- WEAPON (2) ------- Medium Laser Autogun > --- INVENTORY (10) --- Small Storage Unit Small Storage Unit Terrain Scan Processor EM Pulse Gun Small Laser Light Assault Rifle Mini Grenade Launcher Peak State ------------ > --- POWER ------------ Light Ion Engine > --- PROPULSION ------- Improved Hover Unit Improved Hover Unit Improved Hover Unit > --- UTILITY ---------- Medium Storage Unit Seismic Detector > --- WEAPON ----------- Medium Laser Small Laser > --- INVENTORY -------- Small Storage Unit Small Storage Unit Terrain Scan Processor EM Pulse Gun Light Assault Rifle Autogun Mini Grenade Launcher [Rating: 12] Favorites ----------- Power Light Ion Engine Engine Light Ion Engine Propulsion Improved Hover Unit Leg Aluminum Leg Hover Unit Improved Hover Unit Utility Seismic Detector Device Seismic Detector Storage Small Storage Unit Weapon Medium Laser Energy Gun Medium Laser Ballistic Gun Autogun Build | -11 -10 -10 -9 ------- Run | Scr Mat Min Mat Slots Evolved 2 | . . . 2 Power 1 | . . . 1 Propulsion 1 | . . . 1 Utility . | . . . . Weapon . | . . . . Parts Attached 16 | 7 6 . 3 Power 2 | 1 1 . . Engine 2 | 1 1 . . Core . | . . . . Reactor . | . . . . Propulsion 6 | 2 3 . 1 Treads . | . . . . Leg 2 | 2 . . . Wheel . | . . . . Hover 4 | . 3 . 1 Flight . | . . . . Utility 5 | 2 2 . 1 Device 1 | 1 . . . Storage 4 | 1 2 . 1 Processor . | . . . . Hackware . | . . . . Protection . | . . . . Artifact . | . . . . Weapon 3 | 2 . . 1 Energy Gun 2 | 2 . . . Energy Cannon . | . . . . Ballistic Gun 1 | . . . 1 Ballistic Cannon . | . . . . Launcher . | . . . . Special Weapon . | . . . . Impact Weapon . | . . . . Slashing Weapon . | . . . . Piercing Weapon . | . . . . Special Melee Weapon . | . . . . Unidentified Prototypes . | . . . . Parts Lost 5 | . 2 . 3 Power 2 | . 1 . 1 Propulsion 3 | . 1 . 2 Utility . | . . . . Weapon . | . . . . Highest Loss Streak 3 | . 2 . 3 To Critical Strikes . | . . . . Average Slot Usage (%) 95 | . 99 100 87 Engine 12 | . 13 14 11 Leg 2 | . 7 . . Hover 26 | . 20 28 32 Device 12 | . 14 14 11 Storage 12 | . 14 14 11 Energy Gun 25 | . 28 28 20 Naked Turns . | . . . . Heaviest Build 19 | 12 17 12 19 Greatest Support 21 | 20 20 14 21 Greatest Overweight (x) 3 | 3 2 . . Average Overweight (x) . | . . . . Largest Inventory Capacity 10 | 8 10 8 10 Average Capacity 8 | 7 8 8 9 Most Carried 8 | 2 8 6 7 Average Carried 5 | 1 6 6 6 Final Capacity 10 | 8 8 8 10 Final Carried 7 | 2 6 6 7 Class Distribution -------------------- 100% | Mutant Dominant Class ---------------- Mutant | -10/Materials Mutant | -10/Mines Mutant | -9/Materials Resources | -11 -10 -10 -9 ----------- Run | Scr Mat Min Mat Matter Collected 295 | 260 . 35 . Remotely . | . . . . Salvage Created 158 | 16 . 46 96 Parts 10 | 4 . 3 3 Haulers Intercepted . | . . . . Recyclers Shooed . | . . . . Parts Field Recycled . | . . . . Retrieved Matter . | . . . . Parts Self-Destructed . | . . . . Prevented . | . . . . Kills | -11 -10 -10 -9 ------- Run | Scr Mat Min Mat Combat Hostiles Destroyed 5 | . . 3 2 Guns 5 | . . 3 2 Classes Destroyed 3 | 1 . 1 1 Tunneler 1 | 1 . . . Swarmer 3 | . . 3 . Grunt 2 | . . . 2 Best Kill Streak 3 | 1 . 3 2 Combat Bots Only 3 | . . 3 2 Max Kills in Single Turn 2 | 1 . 2 1 Gunslinging . | . . . . Exploded . | . . . . Melee . | . . . . Uniques/NPCs Destroyed . | . . . . Combat | -11 -10 -10 -9 -------- Run | Scr Mat Min Mat Damage Taken 444 | . 261 25 158 Core 55 | . 42 . 13 Absorbed by Shields . | . . . . Core Remaining (%) 91 | 100 . 83 . Volleys Fired 14 | 2 3 3 6 Largest 2 | 2 2 2 2 Hottest 90 | 90 90 90 73 Shots Fired 27 | 4 6 6 11 Gun 27 | 4 6 6 11 Cannon . | . . . . Launcher . | . . . . Special . | . . . . Kinetic 5 | . . . 5 Thermal 22 | 4 6 6 6 Explosive . | . . . . Electromagnetic . | . . . . Robot Hit Streak 3 | 1 3 2 3 Robot Miss Streak 3 | 3 2 1 2 Penetration Max . | . . . . Secondary Targets . | . . . . Shots Hit Robots 15 | 1 4 3 7 Core Hits 8 | 1 1 3 3 Critical Kills . | . . . . Critical Parts Destroyed . | . . . . Critical Strikes 1 | . . 1 . Burn 1 | . . 1 . Melee Attacks . | . . . . Impact . | . . . . Slashing . | . . . . Piercing . | . . . . Sneak Attacks . | . . . . Combat Hostiles . | . . . . Follow-up Attacks . | . . . . Damage Inflicted 241 | 36 47 49 109 Guns 241 | 36 47 49 109 Cannons . | . . . . Explosions . | . . . . Melee . | . . . . Ramming . | . . . . Kinetic 85 | . . . 85 Thermal 156 | 36 47 49 24 Explosive . | . . . . Electromagnetic . | . . . . Impact . | . . . . Slashing . | . . . . Piercing . | . . . . Highest Corruption . | . . . . Average Corruption . | . . . . Corruption Purged . | . . . . Corruption Blocked . | . . . . Overload Shots . | . . . . Overflow Damage . | . . . . Projectiles . | . . . . Explosions . | . . . . Melee . | . . . . Knockbacks . | . . . . Impact . | . . . . Kinetic . | . . . . Secondary . | . . . . Self-Inflicted Damage . | . . . . Shots . | . . . . Rammed . | . . . . Targets Rammed . | . . . . Kicked . | . . . . Crushed . | . . . . Highest Temperature 128 | 30 128 108 108 Average Temperature 51 | 18 63 54 52 Received Heat Transfer 144 | . 90 . 54 Siege Activations . | . . . . Robots Corrupted . | . . . . Combat Hostiles . | . . . . Parts Fried . | . . . . Impact Corruptions . | . . . . Robots Melted . | . . . . Combat Hostiles . | . . . . Parts Melted 2 | . . 2 . Heat Transferred 495 | 87 124 210 74 Parts Sabotaged . | . . . . Parts Stolen . | . . . . Parts Stripped . | . . . . Power Chain Reactions . | . . . . Missiles Intercepted . | . . . . Alert | -11 -10 -10 -9 ------- Run | Scr Mat Min Mat Peak Influence 124 | 5 15 75 124 Initial 29 | . 3 5 29 Average 35 | . 3 74 55 Maximum Alert Level . | . . . . Low Security (%) 100 | 100 100 100 100 Level 1 . | . . . . Level 2 . | . . . . Level 3 . | . . . . Level 4 . | . . . . Level 5 . | . . . . High Security . | . . . . Max Security . | . . . . Squads Dispatched 2 | . . . 2 Investigation 1 | . . . 1 Extermination . | . . . . Reinforcement 1 | . . . 1 Assault . | . . . . Garrison . | . . . . Intercept . | . . . . Searches Triggered . | . . . . Construction Impeded . | . . . . Haulers Reinforced . | . . . . Active Scanning Responses . | . . . . Cargo Convoy Interrupts . | . . . . Stealth | -11 -10 -10 -9 --------- Run | Scr Mat Min Mat Distress Signals 1 | . 1 . . Communications Jammed . | . . . . Distress Signals . | . . . . Times Spotted 17 | . 7 1 9 Peak Tracking Total 7 | . 6 1 7 Tactical Retreats 1 | . . . 1 Traps | -11 -10 -10 -9 ------- Run | Scr Mat Min Mat Traps Triggered 2 | . 1 . 1 Indirectly . | . . . . Trap Hack Attempts . | . . . . Triggered . | . . . . Disarmed . | . . . . Reprogrammed . | . . . . Reused . | . . . . Traps Extracted . | . . . . Installed . | . . . . Triggered . | . . . . Machines | -11 -10 -10 -9 ---------- Run | Scr Mat Min Mat Machines Disabled . | . . . . Max in Single Turn . | . . . . Machines Sabotaged . | . . . . Garrisons Compromised . | . . . . Overloaded Fab Kills . | . . . . Hacking | -11 -10 -10 -9 --------- Run | Scr Mat Min Mat Machines Accessed . | . . . . Terminals . | . . . . Fabricators . | . . . . Repair Stations . | . . . . Recycling Units . | . . . . Scanalyzers . | . . . . Garrison Access . | . . . . Total Hacks . | . . . . Successful . | . . . . Failed . | . . . . Catastrophic . | . . . . Database Lockouts . | . . . . Manual . | . . . . Terminals . | . . . . Fabricators . | . . . . Repair Stations . | . . . . Recycling Units . | . . . . Scanalyzers . | . . . . Garrison Access . | . . . . Terminal Hacks . | . . . . Fabricator Hacks . | . . . . Repair Station Hacks . | . . . . Recycling Unit Hacks . | . . . . Scanalyzer . | . . . . Garrison Access Hacks . | . . . . Unauthorized Hacks . | . . . . Terminals . | . . . . Fabricators . | . . . . Repair Stations . | . . . . Recycling Units . | . . . . Scanalyzers . | . . . . Garrison Access . | . . . . Data Cores Recovered . | . . . . Used . | . . . . Hacking Detections . | . . . . Full Trace Events . | . . . . Feedback Events . | . . . . Feedback Blocked . | . . . . Robot Schematics Acquired . | . . . . Robots Built . | . . . . Authchips . | . . . . Time . | . . . . Total Robot Build Rating . | . . . . Part Schematics Acquired . | . . . . Parts Built . | . . . . Authchips . | . . . . Time . | . . . . Total Part Build Rating . | . . . . Parts Repaired . | . . . . Time . | . . . . Parts Recycled . | . . . . Recycled Matter . | . . . . Retrieved Matter . | . . . . Retrieved Components . | . . . . Parts Scanalyzed . | . . . . Part Schematics Acquired . | . . . . Parts Damaged . | . . . . Bothacking | -11 -10 -10 -9 ------------ Run | Scr Mat Min Mat Used RIF Installer . | . . . . Robots Hacked . | . . . . Non-combat . | . . . . Combat . | . . . . Robot Hacks Applied . | . . . . Relay Couplers Released . | . . . . Fabnet Peak Effective % . | . . . . Robots Rewired . | . . . . Allies Hacked . | . . . . Hacks Repelled . | . . . . Allies | -11 -10 -10 -9 -------- Run | Scr Mat Min Mat Total Allies . | . . . . Largest Group . | . . . . Highest-Rated Group . | . . . . Highest-Rated Ally . | . . . . Total Orders . | . . . . Ally Attacks . | . . . . Total Damage . | . . . . Kills . | . . . . Allies Corrupted . | . . . . Allies Melted . | . . . . Intel | -11 -10 -10 -9 ------- Run | Scr Mat Min Mat Robot Analysis Total . | . . . . Derelict Logs Recovered 1 | . . 1 . Drone Launches . | . . . . Drone Recoveries . | . . . . Exploration | -11 -10 -10 -9 ------------- Run | Scr Mat Min Mat Turns Passed 563 | 69 188 127 179 Spaces Moved 578 | 42 152 211 173 Core 19 | 19 . . . Treads . | . . . . Legs 61 | 23 38 . . Wheels . | . . . . Hover 498 | . 114 211 173 Flight . | . . . . Fastest Speed 50 | 50 56 56 52 Average Speed 65 | 121 78 56 52 Slowest Speed 200 | 200 180 56 52 Overloaded Moves . | . . . . Propulsion Burnouts . | . . . . Robots Hopped . | . . . . Cave-ins Triggered . | . . . . Exploration Rate (%) 24 | 3 25 55 16 Regions Visited 3 Branch Regions 1 Pre-discovered Areas . | . . . . Known Exits Taken . | . . . . Unknown Exits Taken 3 | 1 1 1 . Scrap Searched . | . . . . Spaces Dug . | . . . . Terrain Destroyed . | . . . . Melee . | . . . . Projectile . | . . . . AOE . | . . . . Terrain Rammed . | . . . . Walls Destroyed . | . . . . Machines Disabled . | . . . . Actions | -11 -10 -10 -9 --------- Run | Scr Mat Min Mat Total 730 | 52 214 213 251 Wait 109 | . 42 . 67 Move 575 | 41 151 210 173 Hop . | . . . . Pick Up 11 | 2 7 . 2 Fast Attach 10 | 7 3 . . Attach 3 | . 2 . 1 Detach 2 | . 2 . . Swap 3 | . 1 . 2 Drop 3 | . 3 . . Fire 14 | 2 3 3 6 Melee . | . . . . Ram . | . . . . Kick . | . . . . Crush . | . . . . Escape Stasis . | . . . . Rewire . | . . . . Trap . | . . . . Miscellaneous . | . . . . Route ------- -11/Scrapyard -10/Materials -10/Mines -9/Materials History --------- Turn | Location | Event 13 | -11/Scrapyard | Discovered new exit (range 16) 70 | -11/Scrapyard | Entered Materials 242 | -10/Materials | Discovered new exit (range 14) 258 | -10/Materials | Entered Mines 294 | -10/Mines | Met a Derelict bent on vengeance 300 | -10/Mines | Build established: Mutant 380 | -10/Mines | Discovered new exit (range 9) 385 | -10/Mines | Entered Materials 385 | -9/Materials | Evolved 2 slots: Power x1, Propulsion x1 564 | -9/Materials | Self-destructed Last Messages --------------- 00380_ K-01 Serf collects debris. PARAMETERS=POWER+1,PROPULSION+1 LOCATION=UNKNOWN GOAL=ESCAPE 00392_ Acquired Mni. Grenade Launcher. 00409_ K-01 Serf collects debris. 00410_ O-16 Technician: "IFF HANDSHAKE FAILED. SECURING TERMINAL." 00412_ Acquired Terrain Scan Processor. 00412_ O-16 Technician uses terminal to summon reinforcements. 00412_ ALERT: Hostiles spotted, dispatching reinforcements to Terminal M001. 00412_ O-16 Technician locks terminal. 00413_ K-01 Serf collects debris. 00436_ Triggered Alarm Trap. 00436_ An alarm sounds. 00436_ ALERT: Alarm triggered, dispatching investigation squad. 00438_ K-01 Serf collects debris. 00550_ G-34 Mercenary destroyed. 00559_ Imp. Hover Unit destroyed. 00563_ Lgt. Ion Engine destroyed. Map ----- +----------------------------------------------------+ | ???????????????????? ???????????# ??? | | ???????????????????? ???????????# """ #??? | | ?????????????????### ???????????# "Y" #??? | | ?????????????????# ???????????# #??? | | ?????????????##### ??????????? #??? | | ?????????????? ??????????# """ #??? | | ??????????????? T ??????????? """ #??? | | ???????????????? ?????????????"" #??? | | ?????????????????# ?????????????? #??? | | ?????????????????# ???????????????#+#???? | | ??????????????????# ???????????????# #???? | | ??????????????????# ################ #???? | | ??????????????????# "T" #???? | | ??????????????????# #???? | | ??????????????????# """" """" #???? | | ??????????????????# """" """" #???? | | ??????????????????# """" """" #???? | | ??????????????????# #???? | | ??????????????????# #???? | | ??????????????????# """" """" """" #???? | | ??????????????????+ """" """" """" #???? | | ??????????????????# """" """" """" #???? | | ??????????????????# #???? | | ??????????????????# #???? | | ????????????????????#######+## #???? | | ????????????????????# @g![# #???? | | ????????????????????# = !%ggg# """ #???? | | ????????????????????# !! # """ #???? | | ????????????????????# = ! # """ #???? | | ????????????????????# # #???? | | ????????????????????# "" """ # #???? | | ????????????????????# "T """ # """ #???? | | ????????????????????# ""Y""" # """ #???? | | ????????????????????# # """ #???? | | ????????????????????#?# ###### #???? | | ??????????????????????##?????# #???? | | ?????????????????????????????# #???? | | ?????????????????????????????# #???? | | ?????????????????????????????## ###########? | | ??????????????????????????????# ## #? | | ??????????????????????????????# ## """ #? | | ??????????????????????????????# ## """ #? | | ?????????????????????????????## ## """ #? | | ?????????????????????????????# # """ #? | | ?????????????????????????????# # """ #? | | ?????????????????????????????# + #? | | ?????????????????????????????# # #? | | ?????????????????????????????# # #? | | ?????????????????????????????## ###########? | | ??????????????????????????????# # #???? | +----------------------------------------------------+ Best States ------------- Heat Dissipation 28 Energy Generation 10 Energy Capacity 125 Matter Stores 290 Matter Capacity 300 Sight Range 16 Terrain Scan Density 10 Evasion (%) 55 Item Schematics ----------------- None Robot Schematics ------------------ None Fabricated ------------ Nothing Alien Tech Used ----------------- None Achievements -------------- None Challenges ------------ None Game ------ Seed ImpulseExplosiveScanner Manual? 0 Play Time 00:07:45 Cumulative 33.2 hours Start 2022.05.29 @ 21:56:07 End 2022.05.29 @ 22:01:55 Sessions 1 Manual Loads 0 Difficulty Rogue Special Mode None Game No. 63 Rogue 48 Adventurer 0 Explorer 15 Win Type - Total 0 Types 0/0/0/0/0/0/0/0/0 Lore% 19 Gallery% 29 Achievement% 22 Wizard Run 0 Options --------- ASCII 0 Keyboard 0 Movement Vi Keybinds 0 Fullscreen 2 Font 24/Terminus Map View 76x50 Tactical HUD 1 Map Filters NONE Filters NONE Steam 1 RUN: 17abede8-d5ad-4c02-bb73-b665df49f4f2